bitfinex/quotes_ETHUSD_20250123
["timestamp","ask_amount","ask_price","bid_price","bid_amount"]
[1737604986358,11.44281,3224.4,3223.7,3.10196]
[1737604986515,8.34137,3224.4,3223.8,3.10186]
[1737604987617,5.24,3224.4,3223.8,3.10186]
[1737604988018,5.24,3224.4,3224.0,3.1017]
[1737604989056,5.24,3224.4,3223.9,0.7947]
[1737604989215,8.34139,3224.4,3223.8,6.2037]
[1737604989551,8.34139,3224.4,3223.9,3.1018]
[1737604989759,8.34139,3224.4,3223.8,3.10185]
[1737604990250,5.24,3224.4,3223.8,3.10185]
[1737604990441,5.24,3224.4,3224.0,3.10172]
[1737604991553,5.24,3224.4,3223.8,3.10185]
[1737604991752,3.85786,3224.5,3223.9,3.10179]
[1737604991753,9.09786,3224.5,3223.9,3.10179]
[1737604992515,5.9966,3224.5,3223.8,3.13286584]
[1737604992720,5.24,3224.5,3224.2,3.10148]
[1737604993021,0.7566,3224.8,3224.3,3.10141]
[1737604994067,0.7566,3224.8,3224.4,3.10128]
[1737604994224,5.24,3225.0,3224.7,3.89569]
[1737604995145,0.00643714,3225.1,3224.7,3.89569]
[1737604995562,0.00643714,3225.1,3224.8,3.10088]
[1737604996633,0.00643714,3225.1,3224.7,3.89569]
[1737604996966,0.00643714,3225.1,3224.7,0.7947]
[1737604997625,0.00643714,3225.1,3224.7,3.89567]
[1737604999061,0.00643714,3225.1,3224.8,3.10094]
[1737605000369,0.00643714,3225.1,3224.7,0.7947]
[1737605000782,0.00643714,3225.1,3224.7,3.89574]
[1737605005887,0.00643714,3225.1,3224.8,0.03100734]
[1737605006267,0.00643714,3225.1,3224.7,3.926746]
[1737605007579,0.00643714,3225.1,3224.8,3.1009]
[1737605007897,0.00643714,3225.1,3224.9,3.13186547]
[1737605008236,0.00643714,3225.1,3224.9,0.03100547]
[1737605008384,0.00643714,3225.1,3224.9,0.32104592]
[1737605009300,3.10711714,3225.1,3224.9,0.29004045]
[1737605009786,0.00643714,3225.1,3224.9,0.29004045]
[1737605009986,0.00643714,3225.1,3225.0,0.29004045]
[1737605012013,0.00643714,3225.1,3224.7,3.92672566]
[1737605012879,0.00643714,3225.1,3224.8,3.10096]
[1737605013086,0.00643714,3225.1,3224.9,3.13185548]
[1737605013522,0.00643714,3225.1,3224.9,0.32101536]
[1737605013929,3.10077,3225.0,3224.9,0.29000988]
[1737605014324,3.10717714,3225.1,3224.9,0.29000988]
[1737605014842,3.10077,3225.0,3224.9,0.29000988]
[1737605015192,3.10077,3225.0,3224.7,0.82570665]
[1737605017327,3.10077,3225.0,3224.8,35.0]
[1737605020244,3.10077,3225.0,3224.9,0.46427727]
[1737605021037,3.10077,3225.0,3224.9,35.46427727]
[1737605023804,3.10077,3225.0,3224.9,0.46427727]
[1737605024303,3.10077,3225.0,3224.9,35.46427727]
[1737605027345,6.02484737,3225.0,3224.9,35.46427727]
[1737605027526,6.02484737,3225.0,3224.9,0.46427727]
[1737605027727,5.87028702,3225.0,3224.9,0.46427727]
[1737605027946,5.87028702,3225.0,3224.9,35.46427727]
[1737605028828,5.87028702,3225.0,3224.9,0.46427727]
[1737605029014,5.87028702,3225.0,3224.4,0.48362215]
[1737605029015,3.10116,3224.6,3224.4,0.48362215]
[1737605029355,1.38475851,3224.5,3224.4,35.48362215]
[1737605030413,5.87076702,3224.5,3224.4,35.48362215]
[1737605030759,3.10165,3224.1,3224.0,0.48413804]
[1737605031065,7.3437833,3224.1,3224.0,0.48413804]
[1737605031815,7.3437833,3224.1,3223.1,35.0]
[1737605031816,4.572152,3224.1,3223.1,35.0]
[1737605032047,3.70041301,3223.6,3223.1,35.0]
[1737605033233,0.7729,3223.8,3223.1,38.1026]
[1737605034165,2.92751301,3223.9,3223.2,3.94761007]
[1737605034327,12.04204301,3224.2,3223.2,3.94761007]
[1737605034530,8.94041301,3224.2,3223.3,3.10238]
[1737605034729,8.94041301,3224.2,3223.4,35.03101766]
[1737605035051,8.94041301,3224.2,3223.5,0.8141]
[1737605035256,6.0129,3224.2,3223.6,0.03101729]
[1737605035621,6.0129,3224.2,3223.7,35.0]
[1737605039381,6.0129,3224.2,3223.5,3.91626]
[1737605039584,2.92751301,3224.7,3223.5,3.91626]
[1737605039585,0.7729,3224.7,3223.8,2.0]
[1737605039874,0.7729,3224.7,3223.9,35.03101183]
[1737605040044,0.7729,3224.7,3223.9,35.0]
[1737605040246,0.7729,3224.7,3224.0,0.8141]
[1737605040642,3.87396,3224.7,3224.0,0.8141]
[1737605040841,3.87396,3224.7,3223.9,3.10177]
[1737605040842,0.697496,3224.6,3223.7,0.8141]
[1737605041067,0.7729,3224.1,3223.8,35.0]
[1737605041343,0.7729,3224.1,3223.5,0.8141]
[1737605041883,0.7729,3224.1,3223.5,35.8141]
[1737605043551,2.92751301,3223.6,3223.5,35.8141]
[1737605043889,3.70041301,3223.6,3223.1,0.8141]
[1737605044185,2.92751301,3223.2,3222.9,35.8141]
[1737605044489,2.92751301,3223.2,3222.9,0.8141]
[1737605044848,2.92751301,3223.2,3222.9,35.8141]
[1737605045057,2.92751301,3223.2,3222.9,0.8141]
[1737605045263,2.92751301,3223.2,3222.6,0.7986]
[1737605045475,2.92751301,3222.8,3222.6,0.7986]
[1737605045679,2.92751301,3222.8,3222.1,0.9549098]
[1737605045680,3.72461301,3222.7,3222.1,0.32359464]
[1737605045882,2.92751301,3222.2,3222.1,0.32359464]
[1737605046075,2.92751301,3222.5,3222.1,0.32359464]
[1737605046268,2.92751301,3222.5,3221.9,3.10374]
[1737605047356,2.92751301,3222.5,3221.9,3.13477291]
[1737605048686,0.7971,3222.7,3221.9,3.13477291]
[1737605049201,3.90009,3222.7,3221.9,3.10374]
[1737605049369,3.10338,3222.3,3221.7,0.7986]
[1737605049696,0.7971,3222.2,3221.5,0.7986]
[1737605050601,0.7971,3222.2,3221.5,3.93376725]
[1737605055310,0.7971,3222.2,3221.5,0.82963725]
[1737605055472,0.7971,3222.2,3221.6,3.10404]
[1737605059617,0.7971,3222.2,3221.5,3.93372725]
[1737605060191,0.7971,3222.2,3221.6,3.10402]
[1737605060531,5.24,3222.4,3221.8,3.10384]
[1737605060688,5.9936,3222.4,3221.9,3.10375]
[1737605061037,5.24,3222.4,3222.2,3.10345]
[1737605061622,5.24,3222.4,3222.1,3.10348]
[1737605062046,5.24,3222.4,3222.3,3.10337]
[1737605062595,5.24,3222.4,3222.3,6.03088301]
[1737605062993,0.7536,3223.1,3222.3,2.92751301]
[1737605063193,0.7536,3223.1,3222.6,3.10307]
[1737605065817,0.7536,3223.4,3222.7,3.10298]
[1737605066519,0.7536,3223.4,3222.8,3.10282]
[1737605066691,0.7536,3223.4,3222.8,3.10279]
[1737605068408,0.7536,3223.4,3223.0,3.10266]
[1737605069521,0.7536,3223.4,3223.1,3.10258]
[1737605070324,5.24,3223.5,3223.3,3.10238]
[1737605071697,5.24,3223.5,3223.1,3.93508]
[1737605071895,5.24,3223.5,3223.1,3.10258]
[1737605073243,5.24,3223.5,3223.2,3.10249]
[1737605073445,5.24,3223.5,3223.3,3.10234]
[1737605074867,5.9936,3223.8,3223.3,3.10234]
[1737605076104,6.59296,3223.8,3223.1,3.10258]
[1737605076269,0.8091,3223.7,3223.1,3.10258]
[1737605079197,0.8091,3223.7,3223.2,3.10249]
[1737605080487,0.8091,3223.7,3222.7,3.10294]
[1737605080683,1.41816861,3223.5,3222.8,3.10284]
[1737605080868,0.7995,3223.3,3222.6,3.103]
[1737605081073,0.7995,3223.3,3222.6,6.20601]
[1737605081273,0.7995,3223.3,3222.6,3.103]
[1737605081510,3.10272,3223.0,3222.2,3.10346]
[1737605081701,6.0395,3222.9,3222.3,3.10337]
[1737605081897,0.914222,3222.8,3222.3,3.10337]
[1737605082491,0.914222,3222.8,3222.4,3.1032]
[1737605082691,6.0395,3222.9,3222.3,0.03103319]
[1737605082900,6.0395,3222.9,3222.7,3.10292]
[1737605084700,6.0395,3222.9,3222.3,3.10335]
[1737605085016,0.7995,3222.8,3222.1,3.10353]
[1737605085226,3.103,3222.7,3221.8,3.10376]
[1737605085519,0.7995,3222.5,3221.9,3.10374]
[1737605085874,6.0395,3222.5,3222.0,3.10365]
[1737605088576,6.0395,3222.5,3222.1,3.10348]
[1737605089112,6.0395,3222.5,3222.0,3.10365]
[1737605089428,6.64345,3222.5,3222.1,3.10355]
[1737605090279,6.64345,3222.5,3221.9,3.10369]
[1737605091617,6.64345,3222.5,3222.0,3.10364]
[1737605095419,6.64345,3222.5,3222.1,3.10355]
[1737605095585,6.0395,3222.5,3222.1,3.10355]
[1737605099131,6.0395,3222.5,3222.2,3.10337]
[1737605100161,6.0395,3222.5,3222.3,3.1033]
[1737605100442,6.0395,3222.5,3222.2,3.10337]
[1737605100443,6.0395,3222.5,3222.4,3.10327]
[1737605100944,5.24,3222.5,3222.4,3.10327]
[1737605104657,0.8164,3222.7,3222.4,3.10327]
[1737605105448,0.8164,3222.7,3222.4,6.20647]
[1737605105657,0.8164,3222.7,3222.4,3.1032]
[1737605105861,0.8164,3222.7,3222.5,3.10315]
[1737605106074,0.7674,3223.1,3222.6,3.10308]
[1737605106280,1.4074601,3223.1,3222.6,3.10308]
[1737605106427,0.7674,3223.1,3222.7,3.10298]
[1737605109256,0.7674,3223.3,3222.9,3.10272]
[1737605110365,0.7674,3223.3,3222.9,6.20543]
[1737605110543,0.7674,3223.3,3222.9,3.10271]
[1737605112343,5.24,3223.5,3222.3,3.10332]
[1737605112534,6.0074,3223.6,3223.3,3.10238]
[1737605113496,6.0074,3223.6,3223.1,7.02392]
[1737605113861,6.0074,3223.6,3223.1,6.20512]
[1737605114600,6.0074,3223.6,3223.2,3.10248]
[1737605115304,6.0074,3223.6,3223.3,3.1024]
[1737605115761,0.7674,3223.3,3222.3,0.8188]
[1737605115961,6.0074,3223.3,3222.5,3.10308]
[1737605116206,3.10252,3223.2,3222.5,3.10308]
[1737605116367,1.221223,3223.2,3222.7,3.10295]
[1737605117088,6.0074,3223.3,3222.7,3.10295]
[1737605117291,6.0074,3223.3,3222.9,3.10279]
[1737605117494,6.0074,3223.3,3223.0,3.10267]
[1737605117888,6.0074,3223.3,3222.9,3.10279]
[1737605119112,6.0074,3223.3,3222.7,3.10292]
[1737605119413,3.70325,3223.2,3222.5,3.92196]
[1737605119728,0.7872,3222.9,3222.3,3.10335]
[1737605120280,3.10296,3222.8,3222.1,3.10353]
[1737605120505,0.7872,3222.6,3221.7,0.7937]
[1737605120807,0.7872,3222.6,3222.0,3.10366]
[1737605120990,3.89029,3222.6,3222.0,3.10366]
[1737605121187,0.7872,3222.6,3221.8,3.10385]
[1737605121385,3.10318,3222.5,3221.8,3.10385]
[1737605123027,3.10336,3222.4,3221.7,3.89764]
[1737605123372,0.7872,3222.3,3221.7,3.10394]
[1737605123572,3.10349,3222.2,3221.5,3.39212]
[1737605123994,3.10349,3222.2,3221.5,3.10412]
[1737605124422,3.10358,3222.1,3221.5,3.10412]
[1737605124581,0.7872,3222.0,3221.5,3.10412]
[1737605125226,0.7872,3222.0,3221.3,6.03286412]
[1737605125227,3.89092,3222.0,3221.3,6.03286412]
[1737605125426,4.34310188,3222.0,3221.3,6.03286412]
[1737605127438,4.34310188,3222.0,3221.4,3.10423]
[1737605127818,1.23938188,3222.0,3221.4,3.10423]
[1737605128201,0.7872,3221.9,3221.0,6.03315412]
[1737605128410,3.10395,3221.8,3221.0,6.03315412]
[1737605128700,0.7872,3221.6,3221.0,6.03315412]
[1737605130354,1.39777283,3221.6,3221.0,6.03315412]
[1737605130708,3.89136,3221.5,3221.0,2.92854412]
[1737605131414,0.7872,3221.5,3221.0,6.03315412]
[1737605131623,0.7872,3221.5,3221.0,2.92854412]
[1737605131808,1.27628578,3221.5,3221.0,2.92854412]
[1737605132009,4.38045578,3221.5,3221.0,2.92854412]
[1737605132472,0.7872,3221.1,3220.4,6.03365412]
[1737605132689,3.89179,3221.1,3220.4,6.03365412]
[1737605132889,0.699629,3221.0,3220.5,3.10502]
[1737605134302,3.89173,3221.1,3220.9,3.10466]
[1737605134303,0.7872,3221.1,3220.9,3.10466]
[1737605134610,0.8058,3221.4,3221.1,3.10452]
[1737605134961,0.8058,3221.7,3221.2,3.10439]
[1737605135262,3.10412,3221.6,3221.0,6.03314412]
[1737605136386,3.10423,3221.5,3221.0,2.92854412]
[1737605136591,0.620835,3221.4,3221.0,2.92854412]
[1737605136801,3.10412,3221.6,3221.0,2.92854412]
[1737605136974,3.10426,3221.4,3221.0,2.92854412]
[1737605137174,3.10412,3221.6,3221.0,2.92854412]
[1737605137606,3.10416,3221.5,3221.0,2.92854412]
[1737605137792,0.8058,3221.4,3221.0,2.92854412]
[1737605137993,1.196796,3221.4,3221.0,2.92854412]
[1737605138706,0.8058,3221.0,3220.2,2.92854412]
[1737605139208,3.10481,3220.8,3220.2,6.03385412]
[1737605139369,3.9105,3221.0,3220.3,3.10527]
[1737605139705,3.10472,3220.9,3220.2,2.92854412]
[1737605139909,0.391052,3220.8,3220.2,6.03393412]
[1737605140080,0.391052,3220.8,3220.3,3.10521]
[1737605140407,0.391052,3220.8,3220.5,2.92854412]
[1737605142585,0.8058,3221.0,3220.5,6.03363412]
[1737605143114,0.8058,3221.0,3220.7,3.1049]
[1737605144285,3.10415,3221.5,3220.7,3.1049]
[1737605144286,0.8058,3221.4,3220.8,2.92854412]
[1737605144492,0.8058,3221.4,3221.1,2.92854412]
[1737605144831,1.196795,3221.4,3220.9,3.10465]
[1737605145121,0.8058,3221.3,3220.8,2.92854412]
[1737605145307,0.8058,3221.3,3220.8,6.03333412]
[1737605145501,0.8058,3221.3,3221.1,2.92854412]
[1737605145708,0.8058,3221.3,3220.9,3.10465]
[1737605145891,0.8058,3221.3,3220.8,2.92854412]
[1737605146075,1.507228,3221.3,3220.8,2.92854412]
[1737605146275,1.507228,3221.3,3220.8,6.03333412]
[1737605146676,4.611618,3221.3,3220.8,2.92854412]
[1737605147192,1.507228,3221.3,3220.8,6.03329412]
[1737605147371,0.8058,3221.3,3220.9,3.10471]
[1737605149116,0.8058,3221.3,3221.1,3.1045]
[1737605149315,0.8058,3221.3,3220.9,6.20936]
[1737605149624,0.8058,3221.3,3221.0,3.10461]
[1737605149779,0.8058,3221.6,3220.9,3.91665]
[1737605149976,0.8058,3221.6,3221.1,3.10451]
[1737605150213,3.10425,3221.4,3220.8,2.92854412]
[1737605150516,0.80455817,3221.5,3220.7,3.10488]
[1737605151315,3.10442,3221.3,3220.7,3.10488]
[1737605151682,3.10443,3221.2,3220.7,3.10488]
[1737605152934,3.10396,3221.7,3220.9,3.1047]
[1737605153109,3.414356,3221.7,3221.0,3.1046]
[1737605153486,0.8058,3221.6,3221.0,3.1046]
[1737605154531,0.8058,3221.6,3221.1,3.10452]
[1737605156228,3.10417,3221.5,3220.9,3.1047]
[1737605158082,3.10426,3221.4,3220.9,3.1047]
[1737605158877,0.8058,3221.3,3220.9,3.1047]
[1737605159981,0.8058,3221.3,3220.7,3.1049]
[1737605160548,3.10449,3221.2,3220.6,3.105]
[1737605160962,3.10449,3221.2,3220.5,3.91706]
[1737605160963,0.8058,3221.3,3220.7,3.10487]
[1737605161253,0.8058,3221.3,3220.9,3.10466]
[1737605161459,0.8058,3221.3,3220.8,3.10479]
[1737605162389,0.8058,3221.3,3220.7,3.10487]
[1737605162608,0.8058,3221.3,3220.8,3.10479]
[1737605162811,3.91022,3221.3,3220.7,3.10487]
[1737605162997,3.10445,3221.2,3220.6,3.10496]
[1737605163611,3.91022,3221.3,3220.6,3.10496]
[1737605164484,3.91022,3221.3,3220.7,3.10489]
[1737605164804,0.8058,3221.3,3220.9,3.10471]
[1737605165114,0.8058,3221.3,3220.9,3.10463755]
[1737605166117,0.8058,3221.3,3221.0,0.12205055]
[1737605166617,3.10399,3221.7,3221.0,0.12205055]
[1737605166914,0.8113,3222.0,3221.4,3.10418]
[1737605167214,4.202794,3222.0,3221.4,3.10418]
[1737605167790,7.306524,3222.0,3221.4,3.10418]
[1737605168124,4.202794,3222.0,3221.4,3.10418]
[1737605168320,3.10388,3221.8,3221.2,3.10439]
[1737605168518,3.5345474,3221.8,3221.2,3.10439]
[1737605168706,3.10378,3221.9,3221.3,3.10425]
[1737605170051,3.10378,3221.9,3221.4,0.1220482]
[1737605170359,3.10386,3221.8,3221.4,0.1220482]
[1737605170743,3.10378,3221.9,3221.4,0.1220482]
[1737605171119,6.20762,3221.9,3221.4,0.1220482]
[1737605171332,6.20762,3221.9,3221.2,3.10434]
[1737605171333,6.97037843,3221.9,3221.5,0.1220482]
[1737605171627,3.86653843,3221.9,3221.5,0.1220482]
[1737605172150,6.97037843,3221.9,3221.5,0.1220482]
[1737605172316,3.10389,3221.8,3221.5,0.1220482]
[1737605172866,3.10389,3221.8,3221.2,3.10434]
[1737605173545,0.8113,3221.7,3221.2,3.10434]
[1737605173756,3.91525,3221.7,3221.3,0.12208875]
[1737605174761,3.91525,3221.7,3221.4,0.12208875]
[1737605175675,3.91525,3221.7,3221.5,0.12208875]
[1737605176032,4.69342884,3221.7,3221.5,0.12208875]
[1737605177046,4.69342884,3221.7,3221.1,3.10448]
[1737605177248,3.91525,3221.7,3221.1,3.10448]
[1737605177880,3.10423,3221.5,3221.0,0.7767]
[1737605178080,3.10423,3221.5,3220.8,3.10474]
[1737605178081,6.20846,3221.5,3220.8,3.10474]
[1737605178281,3.10426,3221.4,3220.8,3.10474]
[1737605178584,3.10426,3221.4,3221.2,0.12209116]
[1737605178585,3.10433,3221.3,3221.2,0.12209116]
[1737605178739,3.804696,3221.3,3221.2,0.12209116]
[1737605181274,0.700366,3221.3,3221.2,0.12209116]
[1737605181779,0.7664,3221.6,3221.2,0.12209116]
[1737605181950,0.7664,3221.6,3221.2,0.92169116]
[1737605182148,0.7664,3221.8,3221.2,0.92169116]
[1737605182887,0.7664,3221.8,3221.3,0.12209116]
[1737605183086,1.39561152,3222.1,3221.6,3.10398]
[1737605183383,1.465774,3222.4,3221.7,3.90353]
[1737605183584,0.7664,3222.4,3221.9,3.10373]
[1737605183804,0.7664,3222.4,3221.9,6.03227412]
[1737605184151,3.10322,3222.5,3221.9,6.03227412]
[1737605184490,0.7664,3222.9,3222.2,2.92854412]
[1737605184684,1.21580249,3222.9,3222.3,0.7996]
[1737605185279,0.44940249,3222.9,3222.3,0.7996]
[1737605185484,0.7664,3223.2,3222.5,3.10317]
[1737605185684,0.7664,3223.5,3223.1,2.92854412]
[1737605185860,3.86862,3223.5,3223.1,2.92854412]
[1737605186042,3.10231,3223.4,3222.8,6.03141412]
[1737605186241,3.10214,3223.6,3223.0,0.7996]
[1737605186641,3.10214,3223.6,3223.0,3.90223]
[1737605187096,3.10222,3223.5,3223.0,0.7996]
[1737605187755,3.10214,3223.6,3223.0,0.7996]
[1737605189899,3.86834,3223.8,3223.0,0.7996]
[1737605190073,3.10212,3223.6,3223.0,0.7996]
[1737605190977,0.44954183,3223.7,3223.0,0.7996]
[1737605191187,0.7664,3223.8,3223.0,0.7996]
[1737605191188,0.7664,3223.8,3223.2,3.10244]
[1737605191373,3.8684,3223.8,3223.2,3.10244]
[1737605192999,3.8684,3223.8,3223.0,3.90224]
[1737605193308,0.7664,3223.8,3223.0,3.90224]
[1737605193505,3.10202,3223.7,3223.1,3.10256]
[1737605193663,3.86835,3223.8,3223.2,3.10247]
[1737605193859,0.69702,3223.7,3223.2,3.10247]
[1737605194801,0.69702,3223.7,3223.0,3.90224]
[1737605195102,3.79906,3223.7,3223.0,3.90224]
[1737605195463,3.10215,3223.6,3223.0,3.90224]
[1737605198299,0.7883,3223.5,3222.8,3.10288]
[1737605198606,3.10236,3223.4,3222.8,3.10288]
[1737605200262,3.10215,3223.6,3222.7,0.8089]
[1737605200263,0.7883,3223.8,3222.7,0.83992659]
[1737605200504,3.89026,3223.8,3223.2,3.91133]
[1737605200969,3.89026,3223.8,3223.2,0.8089]
[1737605203710,0.7883,3223.8,3223.2,0.8089]
[1737605203915,3.89005,3224.0,3223.2,0.8089]
[1737605204093,3.88964,3224.5,3223.7,3.10202]
[1737605204282,3.1014,3224.4,3223.8,3.10192]
[1737605204462,3.1014,3224.4,3223.9,0.8089]
[1737605206714,0.7883,3224.5,3223.9,3.91063]
[1737605206881,0.7883,3224.7,3223.9,0.8089]
[1737605207089,0.7883,3224.7,3223.3,5.10237]
[1737605207090,0.7883,3225.0,3224.5,3.10116]
[1737605207282,3.10713714,3225.1,3224.5,3.10116]
[1737605207492,0.00643714,3225.1,3224.5,3.10116]
[1737605207702,0.00643714,3225.1,3224.7,3.10099]
[1737605208013,0.00643714,3225.1,3224.8,3.10096]
[1737605208403,0.00643714,3225.1,3224.5,3.10122]
[1737605208710,3.41789085,3225.1,3224.5,3.10122]
[1737605208903,0.00643714,3225.1,3224.7,3.10096]
[1737605209272,3.10713714,3225.1,3224.5,3.10122]
[1737605209781,3.10713714,3225.1,3224.7,3.10101]
[1737605209782,0.00643714,3225.1,3224.7,3.10101]
[1737605210174,0.00643714,3225.1,3224.8,3.10096]
[1737605210574,0.00643714,3225.1,3225.0,0.8089]
[1737605211008,0.00643714,3225.1,3224.6,0.8089]
[1737605211314,3.41783085,3225.1,3224.6,0.8089]
[1737605212221,0.00643714,3225.1,3224.6,0.8089]
[1737605212526,0.00643714,3225.1,3224.8,3.10096]
[1737605212673,0.00643714,3225.1,3224.9,3.10086]
[1737605213621,0.00643714,3225.1,3224.7,0.03100732]
[1737605213806,0.00643714,3225.1,3224.8,3.10093]
[1737605214115,0.00643714,3225.1,3224.7,3.10105]
[1737605214483,0.00643714,3225.1,3224.7,3.13205733]
[1737605215022,0.00643714,3225.1,3224.7,0.03100733]
[1737605215229,0.00643714,3225.1,3224.8,3.10093]
[1737605215923,0.00643714,3225.1,3225.0,3.10077]
[1737605216906,0.00643714,3225.1,3224.9,0.8089]
[1737605219543,0.00643714,3225.1,3224.4,3.10134]
[1737605219745,3.10094,3224.9,3224.3,0.8089]
[1737605220746,3.10098,3224.8,3224.3,0.8089]
[1737605220927,3.10098,3224.8,3224.0,3.10171]
[1737605220928,5.24,3224.7,3224.0,3.91061]
[1737605221243,3.10145,3224.3,3223.7,0.8089]
[1737605221452,3.10154,3224.2,3223.7,0.8089]
[1737605221851,3.10145,3224.3,3223.7,3.94192644]
[1737605222220,3.10145,3224.3,3223.7,3.91091]
[1737605223541,3.1016,3224.2,3223.7,0.8089]
[1737605223706,3.08296298,3224.2,3223.7,0.8089]
[1737605223903,3.1019,3223.9,3223.4,0.8089]
[1737605224211,3.10212,3223.6,3223.1,0.8089]
[1737605224413,3.10212,3223.6,3223.5,0.12137157]
[1737605225250,3.10201,3223.8,3223.5,0.12137157]
[1737605225563,3.10201,3223.8,3223.2,3.10249]
[1737605226353,3.10201,3223.8,3223.0,0.1523952]
[1737605226562,3.10201,3223.8,3223.0,3.13365363]
[1737605226716,3.10201,3223.8,3223.2,3.10247]
[1737605227519,3.10194,3223.8,3223.1,3.10254]
[1737605227822,3.10204,3223.7,3223.2,0.12141584]
[1737605228755,3.10194,3223.8,3223.2,3.22390584]
[1737605228962,3.10194,3223.8,3223.2,0.12141584]
[1737605229263,3.10194,3223.8,3223.3,3.1024]
[1737605229420,3.10194,3223.8,3223.3,0.7693]
[1737605229621,3.10177,3224.0,3223.3,0.7693]
[1737605229848,3.10184,3223.9,3223.3,3.87169]
[1737605230198,3.10194,3223.8,3223.3,0.7693]
[1737605232352,3.10177,3224.0,3223.4,3.10225]
[1737605232552,3.10154,3224.2,3223.5,3.1022]
[1737605232722,3.10133,3224.5,3223.7,3.69784412]
[1737605232923,3.10136,3224.4,3223.8,0.03101612]
[1737605233623,3.10136,3224.4,3223.9,0.12149852]
[1737605233820,3.10133,3224.5,3223.9,0.12149852]
[1737605234042,3.10116,3224.6,3224.0,3.13273591]
[1737605234242,3.10116,3224.6,3224.1,0.7693]
[1737605235389,3.10089,3224.9,3224.1,3.87092]
[1737605235595,3.10089,3224.9,3224.2,3.10147]
[1737605235894,8.34097,3224.8,3224.1,3.87092]
[1737605236041,3.10109,3224.7,3224.1,3.87092]
[1737605236244,3.10109,3224.7,3224.1,3.90193247]
[1737605236444,5.24,3224.8,3224.2,3.10153]
[1737605236685,5.24,3224.8,3224.2,3.22303097]
[1737605236686,8.34097,3224.8,3224.2,3.22303097]
[1737605236896,8.34097,3224.8,3224.3,3.13245244]
[1737605237069,8.34097,3224.8,3224.3,3.10144]
[1737605237597,3.10109,3224.7,3224.2,0.03101133]
[1737605237746,8.34097,3224.8,3224.1,3.87092]
[1737605237947,11.44203,3224.8,3224.2,0.03101208]
[1737605238148,11.44203,3224.8,3224.1,3.87092]
[1737605239203,11.44203,3224.8,3224.1,3.90193207]
[1737605239675,8.34097,3224.8,3224.1,3.90193207]
[1737605239904,8.34097,3224.8,3224.1,3.87092]
[1737605240063,5.24,3224.8,3224.2,3.1015]
[1737605240559,5.24,3224.8,3224.3,3.10144]
[1737605241104,5.24,3224.8,3224.2,3.1015]
[1737605241614,5.24,3224.8,3224.2,3.10148]
[1737605242811,8.34098,3224.8,3224.2,3.10148]
[1737605243017,5.24,3224.8,3224.3,3.10144]
[1737605244315,8.34095,3224.9,3224.2,3.10148]
[1737605244674,8.34095,3224.9,3224.3,3.1014]
[1737605245786,8.34095,3224.9,3224.2,3.10148]
[1737605245992,8.34095,3224.9,3224.4,3.10134]
[1737605247620,8.34095,3224.9,3224.3,0.12157333]
[1737605248176,3.10126,3224.5,3224.3,0.12157333]
[1737605248388,3.88956,3224.5,3224.3,0.12157333]
[1737605248620,8.34135,3224.4,3224.3,0.12157333]
[1737605249418,3.10157,3224.2,3223.7,0.12157333]
[1737605250922,5.24,3224.1,3223.7,3.10201]
[1737605251933,5.24,3224.1,3223.8,0.12165777]
[1737605252302,5.24,3224.1,3223.8,3.22356777]
[1737605252504,5.24,3224.1,3223.9,3.10182]
[1737605252706,5.24,3224.1,3224.0,3.10173]
[1737605252905,5.24,3224.1,3224.0,3.90873]
[1737605254721,5.24,3224.1,3224.0,4.03036125]
[1737605254921,5.24,3224.9,3224.5,3.87039]
[1737605255124,5.24,3224.9,3224.7,3.10104]
[1737605255307,5.24,3224.9,3224.6,3.10115]
[1737605255514,5.24,3224.9,3224.6,6.20223]
[1737605255708,5.24,3224.9,3224.6,3.10108]
[1737605256144,5.24,3224.9,3224.4,3.10132]
[1737605256442,8.34087,3224.9,3224.4,3.10132]
[1737605256649,5.24,3224.9,3224.4,3.10132]
[1737605256946,5.24,3224.9,3224.5,0.1216595]
[1737605257768,5.24,3224.9,3224.5,3.2228995]
[1737605258542,5.24,3224.9,3224.7,3.10099]
[1737605259101,6.06103714,3225.1,3224.7,3.10099]
[1737605260002,9.16173714,3225.1,3224.5,3.10117]
[1737605261498,9.16173714,3225.1,3224.6,0.1218273]
[1737605261841,3.10087,3224.9,3224.6,0.1218273]
[1737605263242,3.10087,3224.9,3224.1,3.10157]
[1737605263243,0.8146,3224.7,3224.1,3.10157]
[1737605263814,3.9157,3224.7,3224.1,3.10157]
[1737605264799,0.8146,3224.7,3224.2,3.22334495]
[1737605265235,6.0546,3224.7,3224.2,3.22339495]
[1737605265397,5.24,3224.7,3224.3,3.10144]
[1737605265600,5.24,3224.7,3224.4,3.10127]
[1737605265843,5.24,3224.7,3224.5,3.87044]
[1737605266019,5.24,3224.7,3224.6,3.10115]
[1737605268160,5.24,3224.7,3224.6,3.22304751]
[1737605271255,0.00643714,3225.1,3224.6,3.22304751]
[1737605272024,0.00643714,3225.1,3224.7,3.10106]
[1737605272224,0.00643714,3225.1,3224.6,3.22304751]
[1737605272557,0.00643714,3225.1,3224.7,0.12189751]
[1737605273518,0.00643714,3225.1,3224.7,3.22294751]
[1737605273725,0.00643714,3225.1,3224.6,3.10107]
[1737605274561,0.00643714,3225.1,3224.6,6.20215]
[1737605274764,0.00643714,3225.1,3224.7,3.10104]
[1737605275372,0.00643714,3225.1,3224.6,3.10107]
[1737605275977,0.00643714,3225.1,3224.6,6.20216]
[1737605276342,0.00643714,3225.1,3224.7,0.12186126]
[1737605277280,0.00643714,3225.1,3224.7,3.22290126]
[1737605277572,0.00643714,3225.1,3224.7,3.10104]
[1737605277885,0.00643714,3225.1,3224.7,3.13204744]
[1737605278183,0.00643714,3225.1,3224.7,3.10104]